bitfinex-derivatives/quotes_ETHF0:USTF0_20250209
["timestamp","ask_amount","ask_price","bid_price","bid_amount"]
[1739131549538,7.16728245,2628.6,2627.6,6.62904317]
[1739131549741,6.63475245,2628.6,2627.6,6.62904317]
[1739131550851,7.16727245,2628.6,2627.6,6.62904317]
[1739131551148,7.16727245,2628.6,2628.0,3.2078]
[1739131551149,0.0642274,2628.5,2628.0,3.2078]
[1739131551451,6.63475245,2628.6,2628.0,3.2078]
[1739131552047,6.63475245,2628.6,2627.7,3.2078]
[1739131554144,3.42124317,2628.3,2627.7,3.2078]
[1739131554344,3.42124317,2628.0,2627.4,3.2078]
[1739131554542,3.42124317,2628.0,2627.1,3.21350928]
[1739131558655,3.95388317,2628.0,2627.1,3.21350928]
[1739131558844,3.42124317,2628.0,2627.1,3.21350928]
[1739131562348,4.3113689,2627.9,2627.1,3.21350928]
[1739131563047,4.3113689,2627.9,2627.4,3.2078]
[1739131563250,3.42695245,2628.6,2627.7,3.2078]
[1739131563251,5.09724317,2628.3,2627.7,3.2078]
[1739131564250,4.20015972,2628.2,2627.7,3.2078]
[1739131564642,5.09724317,2628.3,2627.7,3.2078]
[1739131565850,3.42124317,2628.0,2627.7,3.2078]
[1739131566055,3.42124317,2628.0,2627.4,3.2078]
[1739131569246,3.2078,2628.2,2627.4,3.2078]
[1739131569550,0.00570928,2628.6,2628.0,3.2078]
[1739131569749,3.42695245,2628.6,2628.0,3.2078]
[1739131571952,4.15488983,2628.5,2628.0,3.2078]
[1739131572147,4.15488983,2628.5,2627.7,3.2078]
[1739131572549,3.42124317,2628.3,2627.7,3.2078]
[1739131572952,3.42124317,2628.3,2627.4,3.2078]
[1739131573851,3.42124317,2628.0,2627.1,3.21350928]
[1739131574059,1.676,2627.9,2627.1,3.21350928]
[1739131578660,1.676,2627.9,2627.4,3.2078]
[1739131579363,2.914,2628.0,2627.4,3.2078]
[1739131579753,2.914,2628.0,2627.7,3.2078]
[1739131581861,3.2078,2628.2,2627.7,3.2078]
[1739131583656,3.44655,2628.5,2627.7,3.2078]
[1739131583861,3.42124317,2628.3,2627.7,3.2078]
[1739131584462,2.914,2628.5,2627.7,3.2078]
[1739131586368,0.06427039,2628.4,2627.7,3.2078]
[1739131586570,2.914,2628.5,2627.7,3.2078]
[1739131586866,0.06426544,2628.4,2627.7,3.2078]
[1739131587071,3.44654,2628.5,2627.7,3.2078]
[1739131587072,2.914,2628.5,2627.7,3.2078]
[1739131587270,0.06426753,2628.4,2627.7,3.2078]
[1739131588367,2.914,2628.5,2627.7,3.2078]
[1739131592473,3.42124317,2628.3,2627.7,3.2078]
[1739131593772,3.42124317,2628.0,2627.7,3.2078]
[1739131593978,5.09724317,2628.0,2627.7,3.2078]
[1739131594775,4.23675264,2627.9,2627.7,3.2078]
[1739131596577,4.23675264,2627.9,2627.2,3.2078]
[1739131597376,4.23675264,2627.9,2627.1,0.00570928]
[1739131600377,4.23675264,2627.9,2627.2,3.2078]
[1739131603578,4.23675264,2627.9,2627.1,0.00570928]
[1739131603772,6.62904317,2627.7,2627.1,0.00570928]
[1739131603973,7.16175317,2627.7,2627.1,0.00570928]
[1739131604284,4.39628919,2627.6,2627.1,0.00570928]
[1739131604874,6.62904317,2627.4,2627.1,0.00570928]
[1739131605183,8.30504317,2627.4,2627.1,0.00570928]
[1739131613594,5.09724317,2627.4,2627.1,0.00570928]
[1739131613891,8.30504317,2627.4,2627.1,0.00570928]
[1739131614389,11.21904317,2627.4,2627.1,0.00570928]
[1739131614988,8.01124317,2627.4,2627.1,0.00570928]
[1739131619888,2.914,2627.4,2627.1,0.00570928]
[1739131620092,2.914,2627.4,2627.2,3.2078]
[1739131620295,1.676,2627.6,2627.2,3.2078]
[1739131620799,1.676,2627.6,2627.1,0.00570928]
[1739131621096,3.42124317,2627.4,2627.1,0.00570928]
[1739131623596,6.62904317,2627.4,2627.1,0.00570928]
[1739131630301,3.42124317,2627.4,2627.1,0.00570928]
[1739131631098,3.2078,2627.5,2627.1,0.00570928]
[1739131631501,3.2078,2627.6,2627.1,0.00570928]
[1739131633000,5.09724317,2627.7,2627.1,0.00570928]
[1739131633600,1.676,2627.7,2627.1,0.00570928]
[1739131634408,3.2078,2627.9,2627.1,0.00570928]
[1739131634609,3.42124317,2628.0,2627.1,0.00570928]
[1739131634610,3.42124317,2628.0,2627.4,3.2078]
[1739131634798,1.676,2628.1,2627.4,3.2078]
[1739131635306,5.6924263,2628.1,2627.4,3.2078]
[1739131635908,4.0164263,2628.1,2627.4,3.2078]
[1739131636205,4.0164263,2628.1,2627.1,0.00570928]
[1739131636206,3.2078,2628.1,2627.7,3.2078]
[1739131636604,1.675,2628.5,2627.7,3.2078]
[1739131637005,5.76958777,2628.5,2627.7,3.2078]
[1739131638403,6.62904317,2628.3,2627.7,3.2078]
[1739131638804,3.96721365,2628.2,2627.7,3.2078]
[1739131639905,3.96721365,2628.2,2627.4,3.2078]
[1739131641912,0.06430056,2628.1,2627.4,3.2078]
[1739131643107,3.96721365,2628.2,2627.4,3.2078]
[1739131643313,8.30404317,2628.3,2627.7,3.2078]
[1739131643505,6.62904317,2628.3,2627.7,3.2078]
[1739131643713,3.2078,2628.3,2627.7,3.2078]
[1739131645209,0.00570928,2628.6,2628.0,3.2078]
[1739131646617,0.00570928,2628.6,2628.2,3.42124317]
[1739131647117,0.00570928,2628.6,2628.3,3.2078]
[1739131650912,0.00570928,2628.6,2628.2,3.42124317]
[1739131651216,0.00570928,2628.6,2627.9,6.62904317]
[1739131652222,0.00570928,2628.6,2628.2,6.62904317]
[1739131653317,0.00570928,2628.6,2628.5,3.2078]
[1739131656526,0.00570928,2628.6,2627.9,6.62904317]
[1739131657023,3.2078,2628.5,2627.9,6.62904317]
[1739131657326,0.00570928,2628.6,2627.9,6.62904317]
[1739131661525,0.00570928,2628.6,2628.2,3.2078]
[1739131662926,0.00570928,2628.6,2628.2,6.62904317]
[1739131663724,0.00570928,2628.6,2628.5,3.2078]
[1739131668232,0.00570928,2628.6,2628.5,6.62904317]
[1739131670224,0.53233,2629.6,2628.5,12.62904317]
[1739131670225,3.2078,2629.6,2628.5,12.62904317]
[1739131670425,1.674,2630.0,2629.4,3.2078]
[1739131670634,0.06433983,2629.9,2629.4,3.2078]
[1739131670819,5.63293041,2630.0,2629.4,3.2078]
[1739131671023,5.63293041,2630.0,2629.1,6.62904317]
[1739131671224,5.63293041,2630.0,2629.4,3.2078]
[1739131671532,0.00570928,2629.8,2629.4,3.2078]
[1739131671832,0.00570928,2629.8,2629.4,6.62904317]
[1739131674331,0.00570928,2629.8,2629.4,3.2078]
[1739131678030,0.00570928,2629.8,2629.3,0.00570928]
[1739131678837,3.2078,2629.6,2629.3,0.00570928]
[1739131681035,0.06434569,2629.5,2629.3,0.00570928]
[1739131681333,3.2078,2629.6,2629.3,0.00570928]
[1739131681531,3.42695245,2629.8,2629.3,0.00570928]
[1739131681737,0.06434271,2629.7,2629.3,0.00570928]
[1739131681926,3.2078,2629.6,2629.3,0.00570928]
[1739131682129,0.06434467,2629.5,2629.3,0.00570928]
[1739131682328,3.2078,2629.6,2629.3,0.00570928]
[1739131683234,5.09995245,2629.8,2629.3,0.00570928]
[1739131683435,0.06433893,2629.7,2629.3,0.00570928]
[1739131684033,1.67870928,2629.8,2629.3,0.00570928]
[1739131684444,0.06433921,2629.7,2629.3,0.00570928]
[1739131684640,1.67870928,2629.8,2629.3,0.00570928]
[1739131685241,1.67870928,2629.8,2629.4,3.2078]
[1739131685638,1.67870928,2629.8,2629.3,0.00570928]
[1739131686438,1.67870928,2629.8,2629.4,3.2078]
[1739131687040,1.67870928,2629.8,2629.3,0.00570928]
[1739131693643,0.00322074,2629.6,2629.3,0.00570928]
[1739131697850,0.00322074,2629.6,2629.4,6.62904317]
[1739131699147,0.00322074,2629.6,2629.3,0.00570928]
[1739131699455,0.00322074,2629.6,2629.5,3.2078]
[1739131708755,0.00570928,2629.8,2629.5,9.74014]
[1739131709057,0.00570928,2629.8,2629.7,3.42124317]
[1739131709254,0.00570928,2629.8,2629.7,5.62654317]
[1739131709451,0.00570928,2629.8,2629.7,11.62654317]
[1739131709854,3.2078,2630.8,2629.7,11.09424317]
[1739131710155,3.2078,2630.8,2630.7,3.42124317]
[1739131710359,3.2078,2631.7,2630.7,6.62904317]
[1739131710556,3.2078,2631.7,2631.2,3.42124317]
[1739131711054,3.21350928,2631.7,2631.2,3.42695245]
[1739131711964,4.06115217,2631.6,2631.2,0.00570928]
[1739131712164,0.06428899,2631.5,2631.2,0.00570928]
[1739131712460,3.99686318,2631.6,2631.2,0.00570928]
[1739131714364,5.66886318,2631.6,2631.2,0.00570928]
[1739131714764,5.66886318,2631.6,2631.2,3.42695245]
[1739131714960,3.21350928,2631.7,2631.3,3.2078]
[1739131715364,0.00570928,2631.7,2631.3,3.2078]
[1739131715666,0.00570928,2631.7,2631.5,3.42124317]
[1739131718568,0.00570928,2631.7,2631.3,3.2078]
[1739131719060,0.00570928,2631.7,2631.5,3.42124317]
[1739131719567,0.00570928,2631.7,2631.6,3.2078]
[1739131728266,0.00570928,2631.7,2631.3,3.2078]
[1739131728472,3.2078,2631.5,2631.2,0.00570928]
[1739131728667,5.71492668,2631.7,2631.2,0.00570928]
[1739131728872,0.0642906,2631.6,2631.2,0.00570928]
[1739131729072,4.30583468,2631.6,2631.2,0.00570928]
[1739131734271,3.2078,2631.5,2631.2,0.00570928]
[1739131737472,0.06429603,2631.4,2631.2,0.00570928]
[1739131738377,0.06429934,2631.3,2631.2,0.00570928]
[1739131739570,0.06429934,2631.4,2631.2,0.00570928]
[1739131739978,3.73974,2631.5,2631.2,0.00570928]
[1739131740172,0.06430145,2631.4,2631.2,0.00570928]
[1739131740575,0.59625145,2631.4,2631.2,0.00570928]
[1739131740883,0.06430145,2631.3,2631.2,0.00570928]
[1739131742982,0.064302,2631.3,2631.2,0.00570928]
[1739131750489,3.2078,2631.5,2631.2,0.00570928]
[1739131753395,0.00570928,2631.7,2631.2,0.00570928]
[1739131753594,3.2078,2631.5,2631.2,0.00570928]
[1739131753994,0.53197,2631.3,2631.2,0.00570928]
[1739131754303,0.59627151,2631.3,2630.3,3.2078]
[1739131754491,3.2078,2630.9,2630.3,3.2078]
[1739131755091,4.8788,2631.2,2630.4,3.42124317]
[1739131755293,0.06430503,2631.1,2630.4,3.42124317]
[1739131755489,4.38882818,2631.1,2630.5,0.00570928]
[1739131755795,4.32452315,2631.1,2630.5,0.00570928]
[1739131756190,1.671,2631.0,2630.5,0.00570928]
[1739131756691,4.36591964,2630.9,2630.5,0.00570928]
[1739131758994,3.2078,2631.2,2630.7,3.42124317]
[1739131759195,1.671,2631.4,2630.9,3.2078]
[1739131760792,3.2078,2631.5,2630.9,3.2078]
[1739131760994,1.67670928,2631.7,2631.0,3.42124317]
[1739131762301,0.00570928,2631.7,2631.0,3.42124317]
[1739131767598,0.00570928,2631.7,2631.1,3.2078]
[1739131769500,0.00570928,2631.7,2631.6,6.62904317]
[1739131769801,9.14678,2633.6,2630.8,0.30299885]
[1739131769802,3.2078,2632.0,2631.4,3.2078]
[1739131770599,5.79925196,2632.3,2631.4,3.2078]
[1739131770600,1.671,2632.3,2631.4,3.2078]
[1739131770799,0.0056979,2632.0,2631.4,3.2134979]
[1739131771604,0.0056979,2632.0,2631.4,0.0056979]
[1739131772204,0.0056979,2632.0,2631.6,3.42124317]
[1739131774404,0.0056979,2632.0,2631.4,3.2134979]
[1739131774706,3.2078,2631.9,2631.4,3.2134979]
[1739131775201,1.671,2631.9,2631.4,3.2134979]
[1739131775902,1.671,2631.8,2631.4,3.2134979]
[1739131776807,1.671,2631.8,2631.4,0.0056979]
[1739131786014,3.2078,2631.6,2631.4,0.0056979]
[1739131788317,1.671,2631.8,2631.4,0.0056979]
[1739131799121,3.2078,2631.6,2631.4,0.0056979]
[1739131802228,3.2078,2631.9,2631.4,0.0056979]
[1739131802721,3.2078,2631.9,2631.6,3.42124317]
[1739131803030,0.0056979,2632.0,2631.6,6.62904317]
[1739131808429,0.0056979,2632.0,2631.6,3.42124317]
[1739131808726,0.0056979,2632.0,2631.4,0.0056979]
[1739131809734,3.2078,2631.5,2631.4,0.0056979]
[1739131811117,1.67,2631.6,2631.4,0.0056979]
[1739131812531,1.67,2631.8,2631.4,0.0056979]
[1739131816434,3.2078,2631.9,2631.4,0.0056979]
[1739131818134,0.0056979,2632.0,2631.6,3.42124317]
[1739131818337,0.0056979,2632.0,2631.9,3.42124317]
[1739131820035,0.0056979,2632.0,2631.6,3.42124317]
[1739131822739,3.2078,2631.9,2631.4,0.0056979]
[1739131824839,3.2078,2631.9,2631.6,3.42124317]
[1739131825144,0.0056979,2632.0,2631.6,3.42124317]
[1739131828137,0.0056979,2632.0,2631.9,3.42124317]
[1739131833739,0.0056979,2632.0,2631.6,3.42124317]
[1739131835747,0.0056979,2632.0,2631.4,0.0056979]
[1739131838753,0.0056979,2632.0,2631.6,3.42124317]
[1739131841544,0.0056979,2632.0,2631.4,0.0056979]
[1739131847146,3.42694107,2632.0,2631.4,0.0056979]
[1739131847353,3.2078,2631.8,2631.4,0.0056979]
[1739131847856,0.06428834,2631.7,2631.4,0.0056979]
[1739131848149,7.8683441,2631.7,2631.4,0.0056979]
[1739131848350,7.80405576,2631.7,2631.4,0.0056979]
[1739131848650,0.06429171,2631.6,2631.4,0.0056979]
[1739131848852,1.669,2631.5,2631.4,0.0056979]
[1739131856453,1.73329302,2631.5,2631.4,0.0056979]
[1739131858053,1.73329327,2631.5,2631.4,0.0056979]
[1739131858451,1.669,2631.5,2631.4,0.0056979]
[1739131859064,1.7332931,2631.5,2631.4,0.0056979]
[1739131860558,1.73329477,2631.5,2631.4,0.0056979]
[1739131862363,0.06429477,2631.5,2631.4,0.0056979]
[1739131862656,3.2078,2631.6,2631.4,0.0056979]
[1739131862657,2.914,2631.7,2631.4,3.2134979]
[1739131864061,4.8824979,2632.0,2631.4,3.2134979]
[1739131864564,1.6746979,2632.0,2631.4,3.2134979]
[1739131873768,7.48554907,2631.9,2631.4,0.0056979]
[1739131873966,0.06428057,2631.8,2631.4,0.0056979]
[1739131875070,0.06429014,2631.7,2631.4,0.0056979]
[1739131875264,0.06429014,2631.8,2631.4,0.0056979]
[1739131875462,0.06428897,2631.7,2631.4,0.0056979]
[1739131875662,7.4212685,2631.9,2631.4,0.0056979]
[1739131875863,0.06428867,2631.8,2631.4,0.0056979]
[1739131876266,4.24999469,2631.7,2631.4,0.0056979]
[1739131876767,6.18609383,2631.6,2631.4,0.0056979]
[1739131876962,0.06429383,2631.5,2631.4,0.0056979]
[1739131877158,4.28052437,2631.5,2631.4,0.0056979]
[1739131880271,4.28051544,2631.5,2631.4,0.0056979]
[1739131881366,4.21623054,2631.5,2631.4,0.0056979]
[1739131881766,11.59523054,2631.5,2631.4,0.0056979]
[1739131882275,11.65952231,2631.5,2631.4,0.0056979]
[1739131884174,11.6595159,2631.5,2631.4,0.0056979]
[1739131884776,11.59523054,2631.5,2631.4,0.0056979]
[1739131884970,11.65951011,2631.5,2631.4,0.0056979]
[1739131885875,17.65951011,2631.5,2631.4,0.0056979]
[1739131886079,0.53196,2631.4,2630.5,3.2078]
[1739131886371,3.2078,2631.1,2630.5,3.2078]
[1739131886673,4.38938537,2631.0,2630.5,3.2078]
[1739131886872,4.32511669,2631.0,2630.5,3.2078]
[1739131887265,4.32511669,2631.0,2630.5,3.2134979]
[1739131892777,0.06425358,2630.9,2630.5,0.0056979]
[1739131893574,4.32511669,2631.0,2630.5,0.0056979]
[1739131893776,0.06425634,2630.9,2630.5,0.0056979]
[1739131895268,4.32511669,2631.0,2630.5,0.0056979]
[1739131895473,0.06425656,2630.9,2630.5,0.0056979]
[1739131896979,4.32511669,2631.0,2630.5,0.0056979]
[1739131897285,0.06425633,2630.9,2630.5,0.0056979]
[1739131898682,4.32511669,2631.0,2630.5,0.0056979]
[1739131898980,0.06429732,2630.9,2630.5,0.0056979]
[1739131900482,4.32511669,2631.0,2630.5,0.0056979]
[1739131900781,0.0642851,2630.9,2630.5,0.0056979]
[1739131901370,4.32511669,2631.0,2630.5,0.0056979]
[1739131901783,1.669,2630.9,2630.5,0.0056979]
[1739131913687,3.19559018,2630.9,2630.5,0.0056979]
[1739131920882,3.2078,2631.1,2630.7,1.52659018]
[1739131921088,4.8758,2631.1,2630.7,1.52659018]
[1739131922287,3.2078,2631.1,2630.9,1.52659018]
[1739131923091,3.2078,2631.4,2630.9,1.52659018]
[1739131923289,3.2078,2631.4,2631.3,1.52659018]
[1739131924489,1.668,2631.7,2631.3,4.73439018]
[1739131925687,1.668,2631.7,2631.3,3.2078]
[1739131927893,1.6736979,2632.0,2631.3,3.2078]
[1739131928095,0.06428047,2631.9,2631.3,3.2078]
[1739131928296,0.06427989,2631.9,2631.3,3.2078]
[1739131928799,0.0056979,2632.0,2631.6,3.2078]
[1739131935794,0.0056979,2632.0,2631.7,3.40845887]
[1739131941697,0.0056979,2632.0,2631.6,3.2078]
[1739131942803,0.0056979,2632.0,2631.4,3.40845887]
[1739131943097,0.0056979,2632.0,2631.7,3.40845887]
[1739131945603,0.0056979,2632.0,2631.9,1.52478137]
[1739131951007,0.0056979,2632.0,2631.7,1.52478137]
[1739131954013,0.0056979,2632.0,2631.9,1.52478137]
[1739131954205,0.0056979,2632.0,2631.9,4.73258137]
[1739131955306,0.0056979,2632.0,2631.9,1.52478137]
[1739131955506,0.0056979,2632.0,2631.9,4.73258137]
[1739131956512,0.0056979,2632.0,2631.9,1.52478137]
[1739131957313,0.0056979,2632.0,2631.7,1.52478137]
[1739131975821,0.0056979,2632.0,2631.6,3.2078]
[1739131977015,0.0056979,2632.0,2631.5,1.52478137]
[1739131977323,0.0056979,2632.0,2630.5,0.0056979]
[1739131977324,1.52478137,2631.7,2631.1,1.52478137]
[1739131977517,3.19078137,2631.7,2631.1,1.52478137]
[1739131978814,4.24164329,2631.6,2631.1,1.52478137]
[1739131980323,4.24164329,2631.6,2631.3,1.52478137]
[1739131982624,3.19078137,2631.7,2631.3,1.52478137]
[1739131983821,3.2078,2631.8,2631.5,1.52478137]
[1739131984021,0.0056979,2632.0,2631.7,1.52478137]
[1739131984221,0.0056979,2632.0,2631.9,1.52478137]
[1739131985631,0.0056979,2632.0,2631.7,3.2078]
[1739131987426,0.0056979,2632.0,2631.9,3.40725371]
[1739132003245,0.0056979,2632.0,2631.9,3.71446776]
[1739132003641,1.665,2632.8,2631.9,3.71446776]
[1739132003841,3.2078,2633.1,2632.7,3.40725371]
[1739132005350,0.0056979,2633.2,2632.7,3.40725371]
[1739132005548,0.0056979,2633.2,2632.6,3.2134979]
[1739132005940,4.21529998,2633.1,2632.6,3.2134979]
[1739132006145,4.15104997,2633.1,2632.6,0.0056979]
[1739132006544,0.06425437,2633.0,2632.6,0.0056979]
[1739132008354,4.15104997,2633.1,2632.6,0.0056979]
[1739132008656,0.06425367,2633.0,2632.6,0.0056979]
[1739132009555,2.97825367,2633.0,2632.6,0.0056979]
[1739132009854,2.914,2633.0,2632.6,0.0056979]
[1739132013350,0.0056979,2633.2,2632.7,3.40725371]
[1739132013556,0.0056979,2633.2,2632.9,3.2078]
[1739132013752,0.0056979,2633.2,2633.0,3.40725371]
[1739132018854,0.0056979,2633.2,2632.6,0.0056979]
[1739132020358,4.10538785,2633.1,2632.6,0.0056979]
[1739132026166,0.0056979,2633.2,2632.7,3.40725371]
[1739132027664,0.0056979,2633.2,2632.6,0.0056979]
[1739132027864,3.96865191,2633.1,2632.6,0.0056979]
[1739132028364,0.0056979,2633.2,2632.8,3.2078]
[1739132029162,0.0056979,2633.2,2633.0,3.40725371]
[1739132029372,0.0056979,2633.2,2633.1,3.2078]
[1739132031268,0.0056979,2633.2,2633.0,3.40725371]
[1739132031476,0.0056979,2633.2,2632.8,3.2078]
[1739132032569,0.0056979,2633.2,2632.7,3.40725371]
[1739132036871,0.0056979,2633.2,2632.8,3.2078]
[1739132037282,0.0056979,2633.2,2632.7,3.40725371]
[1739132037475,0.0056979,2633.2,2632.8,3.2078]
[1739132037881,0.0056979,2633.2,2633.0,3.40725371]
[1739132041676,0.0056979,2633.2,2633.1,3.2078]
[1739132044786,3.2078,2634.4,2633.4,0.53153]
[1739132044982,3.2078,2634.4,2633.9,3.40725371]
[1739132044983,0.06422264,2634.3,2633.9,3.40725371]
[1739132045490,3.2078,2634.4,2633.9,3.40725371]
[1739132045980,3.21347899,2634.4,2633.9,3.40725371]
[1739132047585,3.21347899,2634.4,2633.7,3.2078]
[1739132047790,3.2078,2634.1,2633.4,3.2078]
[1739132048177,4.19231539,2634.0,2633.4,3.2078]
[1739132048385,0.06422955,2633.9,2633.4,3.2078]
[1739132049287,0.06422955,2633.9,2633.3,3.40725371]
[1739132049491,5.79208688,2634.0,2633.3,3.40725371]
[1739132049689,0.06423442,2633.9,2633.3,3.40725371]
[1739132051787,4.26677112,2633.8,2633.3,3.40725371]
[1739132051985,7.18077112,2633.8,2633.3,3.40725371]
[1739132053292,3.2078,2633.5,2632.7,6.61505371]
[1739132053890,0.0642426,2633.4,2632.7,6.61505371]
[1739132054590,3.2078,2633.5,2632.7,6.61505371]
[1739132054785,0.06424478,2633.4,2632.7,6.61505371]
[1739132054992,4.05693796,2633.4,2632.7,6.61505371]
[1739132055183,3.99269318,2633.4,2632.7,6.61505371]
[1739132057984,3.99269318,2633.4,2633.0,6.61505371]
[1739132058189,4.8718,2633.8,2633.0,6.61505371]
[1739132058388,0.06423628,2633.7,2633.0,6.61505371]
[1739132058698,4.16922342,2633.7,2633.0,6.61505371]
[1739132058995,4.10498714,2633.7,2633.0,6.61505371]
[1739132062996,3.2078,2633.5,2633.0,3.2078]
[1739132063193,3.2078,2633.5,2632.7,6.61505371]
[1739132063498,0.06424334,2633.4,2632.7,6.61505371]
[1739132067901,0.06424708,2633.3,2632.7,6.61505371]
[1739132068102,6.61505371,2633.5,2632.7,3.40725371]
[1739132068303,4.27258233,2633.4,2632.7,3.40725371]
[1739132068501,0.06424748,2633.3,2632.7,3.40725371]
[1739132068901,2.97824748,2633.3,2632.7,3.40725371]
[1739132069101,2.914,2633.3,2632.7,3.40725371]
[1739132069496,4.19410831,2633.2,2632.7,3.40725371]
[1739132071704,5.85710831,2633.2,2632.7,3.40725371]
[1739132073005,0.00316306,2633.0,2632.7,3.40725371]
[1739132073708,3.21096306,2633.0,2632.6,0.0056979]
[1739132079821,4.12984396,2632.9,2632.6,0.0056979]
[1739132086621,3.2078,2632.7,2632.6,0.0056979]
[1739132086827,3.2078,2632.7,2631.8,3.40725371]
[1739132087030,1.663,2632.6,2631.8,3.40725371]
[1739132087415,4.06825639,2632.5,2631.8,3.40725371]
[1739132087921,4.06825639,2632.5,2631.9,0.0056979]
[1739132092723,6.98225639,2632.5,2631.9,0.0056979]
[1739132099025,0.06423494,2632.4,2631.9,0.0056979]
[1739132099524,6.98225639,2632.5,2631.9,0.0056979]
[1739132099731,0.06423369,2632.4,2631.9,0.0056979]
[1739132099926,6.98225639,2632.5,2631.9,0.0056979]
[1739132100128,0.06423384,2632.4,2631.9,0.0056979]
[1739132100530,6.98225639,2632.5,2631.9,0.0056979]
[1739132101431,0.06422929,2632.4,2631.9,0.0056979]
[1739132102420,6.98225639,2632.5,2631.9,0.0056979]
[1739132102623,0.06422553,2632.4,2631.9,0.0056979]
[1739132104523,2.97822553,2632.4,2631.9,0.0056979]
[1739132104834,2.914,2632.4,2631.9,0.0056979]
[1739132107337,2.914,2632.4,2632.1,3.40725371]
[1739132108537,2.914,2632.4,2632.0,3.2078]
[1739132110538,2.914,2632.7,2632.1,3.40725371]
[1739132110729,7.7848,2632.9,2632.3,3.2078]
[1739132112137,2.914,2632.9,2632.4,3.40725371]
[1739132112333,0.00316306,2633.0,2632.6,3.2078]
[1739132115340,0.00316306,2633.0,2632.7,3.40725371]
[1739132115539,0.00316306,2633.0,2632.9,3.2078]
[1739132121144,0.00316306,2633.0,2632.9,9.2078]
[1739132121343,3.2078,2634.2,2632.9,9.2078]
[1739132121536,0.06418722,2634.1,2633.6,3.2078]
[1739132121938,3.2078,2634.2,2633.6,3.2078]
[1739132122646,3.2134979,2634.2,2633.6,3.2134979]
[1739132122843,0.06417157,2634.1,2633.6,3.2134979]
[1739132124042,3.2134979,2634.2,2633.6,3.2134979]
[1739132126046,0.0056979,2634.2,2633.6,3.2134979]
[1739132128336,0.0056979,2634.2,2633.8,3.40725371]
[1739132131249,0.0056979,2634.2,2633.9,3.2078]
[1739132133353,0.0056979,2634.2,2634.1,3.40725371]
[1739132133651,2.914,2634.9,2634.1,3.40725371]
[1739132133951,3.2078,2635.0,2634.7,3.40725371]
[1739132134258,4.10542932,2634.9,2634.7,3.40725371]
[1739132137257,4.10542932,2634.9,2634.8,3.2078]
[1739132137446,3.2078,2636.0,2634.8,3.2078]
[1739132137650,3.2078,2636.0,2635.4,3.40725371]
[1739132137651,6.1218,2636.0,2635.4,3.40725371]
[1739132137954,6.1218,2636.0,2635.4,3.41295161]
[1739132137955,4.03069581,2635.8,2635.4,3.41295161]
[1739132138157,0.0641846,2635.7,2635.4,0.0056979]
[1739132138349,0.0641846,2635.6,2635.4,0.0056979]
[1739132138549,3.94648669,2635.8,2635.4,0.0056979]
[1739132138854,0.06418476,2635.7,2635.4,0.0056979]
[1739132139058,0.06418476,2635.8,2635.4,0.0056979]
[1739132139256,0.06418397,2635.7,2635.4,0.0056979]
[1739132139456,0.06418397,2635.7,2635.4,3.41295161]
[1739132139657,4.01432238,2635.8,2635.4,3.41295161]
[1739132144161,3.2078,2635.7,2635.4,0.0056979]
[1739132144364,0.06418618,2635.6,2635.4,0.0056979]
[1739132144560,4.33376591,2635.6,2635.4,0.0056979]
[1739132144751,0.0641881,2635.5,2635.4,0.0056979]
[1739132145254,4.29520599,2635.5,2635.4,0.0056979]
[1739132145565,10.29520599,2635.5,2634.7,3.2078]
[1739132145767,3.2078,2635.1,2634.7,3.2078]
[1739132146863,3.2078,2635.1,2634.6,0.0056979]
[1739132147054,3.2078,2634.8,2634.6,0.0056979]
[1739132148166,3.99182357,2634.7,2634.6,0.0056979]
[1739132148360,4.05598353,2634.7,2633.9,3.40725371]
[1739132148667,3.2078,2634.2,2633.8,3.2078]
[1739132149562,4.11331245,2634.1,2633.8,3.2078]
[1739132151563,4.8688,2634.2,2633.8,3.2078]
[1739132152660,1.661,2634.2,2633.8,3.2078]
[1739132153073,3.2078,2634.5,2633.9,3.40725371]
[1739132153074,1.661,2634.3,2633.9,3.40725371]
[1739132154367,3.2078,2634.5,2633.9,3.40725371]
[1739132154666,1.661,2634.9,2634.2,3.40725371]
[1739132154967,0.06413267,2634.8,2634.2,3.40725371]
[1739132155563,0.06413267,2634.8,2634.1,3.2078]
[1739132155564,0.06413267,2634.8,2634.5,3.40725371]
[1739132155857,1.661,2634.9,2634.5,3.40725371]
[1739132158575,4.24991205,2634.8,2634.2,3.40725371]
[1739132159966,3.27192091,2634.7,2634.2,3.40725371]
[1739132160166,3.2078,2634.7,2634.2,3.40725371]
[1739132160471,1.661,2634.9,2634.2,3.40725371]
[1739132160672,0.0641218,2634.8,2634.2,3.40725371]
[1739132160859,4.07964782,2634.8,2634.2,3.40725371]
[1739132161060,0.0641218,2634.7,2634.2,3.40725371]
[1739132161972,4.01552602,2634.8,2634.2,3.40725371]
[1739132162472,0.06412265,2634.7,2634.2,3.40725371]
[1739132165277,4.01552602,2634.8,2634.2,3.40725371]
[1739132165472,0.06412184,2634.7,2634.2,3.40725371]
[1739132165869,4.01552602,2634.8,2634.2,3.40725371]
[1739132166474,5.72711262,2634.9,2634.2,3.40725371]
[1739132166673,0.06415218,2634.8,2634.2,3.40725371]
[1739132166877,1.661,2634.9,2634.2,3.40725371]
[1739132167175,4.11573378,2634.8,2634.2,3.40725371]
[1739132169373,3.2078,2635.0,2634.2,3.40725371]
[1739132169576,0.06419243,2634.9,2634.2,3.40725371]
[1739132172570,1.661,2635.1,2634.2,3.40725371]
[1739132172767,0.0642019,2635.0,2634.2,3.40725371]
[1739132172971,4.13085031,2635.0,2634.8,3.40725371]
[1739132173180,0.0056979,2635.2,2634.8,3.40725371]
[1739132175383,0.0056979,2635.2,2635.0,3.2078]
[1739132176378,0.0056979,2635.2,2635.1,3.40725371]
[1739132179082,0.03591102,2635.9,2635.1,9.40725371]
[1739132179282,0.03591102,2635.9,2634.8,0.83690491]
[1739132179283,0.06417638,2635.8,2635.4,3.40725371]
[1739132179784,0.03591102,2635.9,2635.4,3.40725371]
[1739132180378,0.0056979,2635.9,2635.7,3.40725371]
[1739132181072,3.2078,2636.6,2635.7,9.40725371]
[1739132181281,0.06416117,2636.5,2636.3,3.40725371]
[1739132181483,3.2078,2636.7,2636.3,3.40725371]
[1739132181675,0.06415968,2636.6,2636.0,6.61505371]
[1739132181877,3.2078,2636.7,2636.0,6.61505371]
[1739132182174,4.21208274,2636.6,2636.0,6.61505371]
[1739132182379,0.06416391,2636.5,2636.0,3.40725371]
[1739132182686,3.2078,2636.4,2635.6,3.2078]
[1739132182873,3.2078,2636.4,2635.4,3.41295161]
[1739132182874,3.2078,2636.1,2635.4,3.41295161]
[1739132183078,0.06416489,2636.0,2635.4,3.41295161]